bitfinex/quotes_ETHUSD_20220226
["timestamp","ask_amount","ask_price","bid_price","bid_amount"]
[1645855687227,0.511,2784.3,2783.6,1.09538064]
[1645855687427,0.511,2784.3,2784.0,0.00452349]
[1645855687997,0.411,2784.3,2784.0,0.00452349]
[1645855688395,0.411,2784.3,2783.5,1.1353]
[1645855688592,0.411,2784.3,2783.6,1.11456663]
[1645855688792,0.411,2784.3,2784.0,0.00452344]
[1645855689596,0.411,2784.3,2784.0,0.04271465]
[1645855689915,0.411,2784.3,2784.0,0.04723809]
[1645855690896,0.411,2784.3,2784.0,0.04271465]
[1645855691097,0.411,2784.3,2784.0,0.04723809]
[1645855691931,0.411,2784.3,2784.0,0.04271465]
[1645855692331,0.411,2784.3,2784.0,0.04727287]
[1645855693138,0.411,2784.3,2784.0,0.04271465]
[1645855693336,0.411,2784.3,2784.0,0.04727287]
[1645855694440,0.411,2784.3,2784.0,0.04271465]
[1645855694639,0.411,2784.3,2784.0,0.00455822]
[1645855695471,0.411,2784.3,2783.8,0.0425386]
[1645855695871,0.411,2784.3,2784.0,0.00455466]
[1645855696873,0.411,2784.3,2783.8,0.0425386]
[1645855697075,0.411,2784.3,2784.0,0.00455466]
[1645855697876,0.411,2784.3,2783.8,0.0425386]
[1645855698179,0.411,2784.3,2784.0,0.00455466]
[1645855699226,0.411,2784.3,2783.8,0.0425386]
[1645855699429,0.411,2784.3,2783.6,0.0030813]
[1645855699430,0.411,2784.3,2784.0,0.00455502]
[1645855700429,0.411,2784.3,2783.7,0.0325642]
[1645855700627,0.411,2784.3,2784.0,0.00455502]
[1645855701730,0.411,2784.3,2783.7,0.0325642]
[1645855702134,0.411,2784.3,2784.0,0.00455502]
[1645855702776,0.411,2784.3,2783.7,0.0325642]
[1645855703175,0.411,2784.3,2784.0,0.00455498]
[1645855703976,0.411,2784.3,2783.7,0.0325642]
[1645855704174,0.411,2784.3,2784.0,0.00440467]
[1645855705179,0.411,2784.3,2783.6,0.0030813]
[1645855705378,0.411,2784.3,2784.0,0.00440467]
[1645855706424,0.411,2784.3,2783.6,0.0030813]
[1645855706622,0.411,2784.3,2784.0,0.00440969]
[1645855707629,0.411,2784.3,2783.6,0.0030813]
[1645855707827,0.411,2784.3,2784.0,0.00426078]
[1645855708828,0.411,2784.3,2783.6,0.0030813]
[1645855709027,0.411,2784.3,2784.0,0.00426078]
[1645855709229,1.3092316,2784.3,2784.1,0.04262662]
[1645855710373,1.3092316,2784.3,2784.1,0.04689183]
[1645855711375,1.3092316,2784.3,2784.1,0.04262662]
[1645855711578,1.3092316,2784.3,2784.1,0.04690154]
[1645855712376,1.3092316,2784.3,2784.1,0.04262662]
[1645855712578,1.3092316,2784.3,2784.1,0.04690154]
[1645855713579,1.3092316,2784.3,2784.1,0.04262662]
[1645855713840,1.3092316,2784.3,2784.1,0.04690077]
[1645855714727,1.3092316,2784.3,2784.1,0.04262662]
[1645855715127,1.3092316,2784.3,2784.1,0.04689981]
[1645855716126,1.3092316,2784.3,2784.1,0.04262662]
[1645855716331,1.3092316,2784.3,2784.1,0.04689981]
[1645855717229,1.3092316,2784.3,2784.1,0.04262662]
[1645855717574,1.3092316,2784.3,2784.1,0.04689992]
[1645855718479,1.3092316,2784.3,2784.1,0.04262662]
[1645855718680,1.3092316,2784.3,2784.1,0.04690004]
[1645855719680,1.3092316,2784.3,2784.1,0.04262662]
[1645855719880,1.3092316,2784.3,2784.1,0.04690004]
[1645855720882,1.3092316,2784.3,2784.1,0.04262662]
[1645855721085,1.3092316,2784.3,2784.1,0.04690004]
[1645855722022,1.5177972,2784.2,2784.1,0.04262662]
[1645855722223,2.0287972,2784.2,2784.1,0.04262662]
[1645855722423,0.511,2784.2,2784.1,0.04690001]
[1645855723226,0.511,2784.2,2784.1,0.04262662]
[1645855724926,2.0287658,2784.2,2784.1,0.04262662]
[1645855726974,2.02790202,2784.2,2784.1,0.04262662]
[1645855727175,0.89823,2784.5,2784.1,0.04262662]
[1645855727176,1.40923,2784.5,2784.1,0.04262662]
[1645855727374,1.51760126,2784.4,2784.1,0.04262662]
[1645855727777,1.51760126,2784.4,2784.3,1.3906907]
[1645855727977,0.511,2784.5,2784.1,0.04262662]
[1645855728277,0.511,2784.5,2784.1,0.04689997]
[1645855729331,0.511,2784.5,2784.2,1.24531428]
[1645855729527,0.511,2784.5,2784.1,0.04690001]
[1645855729733,1.40906,2784.5,2784.1,0.04489312]
[1645855729927,1.51760329,2784.4,2784.1,0.04489312]
[1645855730530,1.51760329,2784.4,2784.1,0.04061973]
[1645855730727,1.51760329,2784.4,2784.1,0.04489308]
[1645855730930,1.51760329,2784.4,2784.3,1.2582593]
[1645855731129,1.51760329,2784.4,2784.1,0.04489308]
[1645855731528,1.12341368,2784.5,2784.1,0.04489308]
[1645855731728,1.12341368,2784.5,2784.1,0.04061973]
[1645855732031,1.12341368,2784.5,2784.1,0.04489308]
[1645855732678,1.5176261,2784.4,2784.1,0.04489308]
[1645855732877,1.12341368,2784.5,2784.1,0.04061973]
[1645855733079,1.12341368,2784.5,2784.1,0.04489311]
[1645855734079,1.12341368,2784.5,2784.1,0.04061973]
[1645855734479,1.12341368,2784.5,2784.1,0.04489311]
[1645855735280,1.12341368,2784.5,2784.1,0.04061973]
[1645855735482,1.12341368,2784.5,2784.1,0.04489311]
[1645855736532,1.12341368,2784.5,2784.1,0.04061973]
[1645855736733,1.12341368,2784.5,2784.1,0.04487352]
[1645855737735,1.12341368,2784.5,2784.1,0.04061973]
[1645855737935,1.12341368,2784.5,2784.1,0.04487352]
[1645855738935,1.12341368,2784.5,2784.1,0.04061973]
[1645855739138,1.12341368,2784.5,2784.1,0.04487352]
[1645855739538,0.61241368,2784.5,2784.1,3.54487352]
[1645855739740,2.6989424,2784.7,2784.1,4.54487352]
[1645855739944,0.9022652,2784.7,2784.1,1.04487352]
[1645855740181,0.9022652,2784.7,2784.2,0.3597]
[1645855740380,0.8980123,2784.7,2784.2,0.3597]
[1645855740782,0.9001503,2784.7,2784.2,0.3597]
[1645855740990,0.9001503,2784.7,2784.1,0.70031973]
[1645855741180,0.9001503,2784.7,2784.1,1.59813973]
[1645855741780,0.90015041,2784.7,2784.2,2.79387163]
[1645855742182,0.90015041,2784.7,2784.2,1.0]
[1645855742381,0.90015041,2784.7,2784.1,2.89813973]
[1645855742584,0.90015041,2784.7,2784.1,1.59813973]
[1645855742585,0.8980123,2784.7,2784.1,1.59813973]
[1645855742787,2.31093402,2785.1,2784.3,0.3597]
[1645855742788,0.00418882,2785.1,2784.3,0.3597]
[1645855742989,0.00471162,2784.7,2784.4,0.3597]
[1645855743588,0.00471162,2784.7,2784.5,1.32528467]
[1645855743859,0.00471162,2784.7,2784.5,1.62528467]
[1645855744247,0.0047117,2784.7,2784.5,1.62528467]
[1645855744446,0.89075765,2785.2,2784.5,1.62528467]
[1645855744646,0.89075765,2785.2,2784.6,0.1436]
[1645855745051,0.87191416,2785.2,2784.6,0.1436]
[1645855746852,0.87191416,2785.2,2784.5,1.62528467]
[1645855747780,0.00485435,2785.0,2784.5,1.62528467]
[1645855748582,0.87191416,2785.2,2784.5,1.62528467]
[1645855748978,0.00485444,2784.9,2784.5,1.62528467]
[1645855749979,1.7956561,2785.1,2784.5,1.62528467]
[1645855750179,0.00485448,2784.8,2784.5,1.62528467]
[1645855750578,0.90267368,2784.8,2784.5,1.62528467]
[1645855750779,0.90267368,2784.8,2784.5,1.76888467]
[1645855751179,0.8978192,2784.8,2784.5,1.76888467]
[1645855751435,0.90267364,2784.8,2784.5,1.76888467]
[1645855752036,0.90267364,2784.8,2784.3,1.23575531]
[1645855752243,0.8978192,2784.8,2784.0,2.0986113]
[1645855752437,0.8978192,2784.8,2784.0,1.7986113]
[1645855752643,0.90267364,2784.8,2784.3,0.00485531]
[1645855753042,0.90267364,2784.8,2784.4,1.14686707]
[1645855753640,0.90267364,2784.8,2784.4,1.44686707]
[1645855753840,0.90267359,2784.8,2784.4,1.44686707]
[1645855754240,0.90267359,2784.8,2784.3,0.30485527]
[1645855754440,0.90267359,2784.8,2784.3,0.00485527]
[1645855754641,0.90267359,2784.8,2784.6,0.04185211]
[1645855754843,0.8978192,2784.8,2784.6,0.04185211]
[1645855755084,0.90267355,2784.8,2784.6,0.04185211]
[1645855755480,1.41367355,2784.8,2784.6,0.04185211]
[1645855755880,1.4088192,2784.8,2784.6,0.04185211]
[1645855756082,1.4088192,2784.8,2784.0,0.0030813]
[1645855756282,1.41350984,2784.8,2784.3,0.00469149]
[1645855757080,1.4088192,2784.8,2784.0,0.0030813]
[1645855757281,1.41350971,2784.8,2784.3,0.00469136]
[1645855758288,1.4088192,2784.8,2784.0,0.0030813]
[1645855758685,1.4088192,2784.8,2784.3,0.00469136]
[1645855758686,1.41350971,2784.8,2784.3,0.00469136]
[1645855759438,3.5,2784.7,2784.6,0.04185211]
[1645855759636,4.011,2784.7,2784.6,0.04185211]
[1645855759837,4.011,2784.7,2784.0,0.0030813]
[1645855759838,1.02376632,2784.5,2784.0,0.0030813]
[1645855760036,0.511,2784.4,2784.3,0.00454522]
[1645855760236,4.011,2784.4,2783.8,0.0030813]
[1645855760438,4.011,2784.4,2783.6,0.0030813]
[1645855760635,4.011,2784.4,2783.7,0.0030813]
[1645855760839,4.011,2784.4,2783.4,2.8987]
[1645855760840,4.011,2784.4,2783.5,0.0030813]
[1645855761439,0.511,2784.4,2783.5,0.0030813]
[1645855761637,0.8982836,2784.3,2783.5,0.0030813]
[1645855761838,0.89827,2784.1,2783.5,0.0030813]
[1645855762041,0.511,2784.0,2783.5,0.0030813]
[1645855762241,0.511,2784.0,2783.3,5.3811813]
[1645855762443,0.511,2784.0,2783.8,0.00242728]
[1645855763495,0.511,2784.0,2783.8,0.00485566]
[1645855763697,0.8982369,2783.9,2783.8,0.00485566]
[1645855764598,0.8982369,2783.9,2783.3,0.1466813]
[1645855764795,0.8982369,2783.9,2783.7,0.00485571]
[1645855765797,0.8982369,2783.9,2783.3,0.1466813]
[1645855766000,0.8982369,2783.9,2783.7,0.00485575]
[1645855766837,0.8982369,2783.9,2783.3,0.1466813]
[1645855767035,0.8982369,2783.9,2783.7,1.42467224]
[1645855767234,0.8982369,2783.9,2783.7,1.42943694]
[1645855768039,0.8982369,2783.9,2783.7,1.42467224]
[1645855768642,0.8982369,2783.9,2783.3,0.0030813]
[1645855768844,4.011,2783.8,2783.1,0.0030813]
[1645855769039,0.511,2783.8,2783.1,0.0030813]
[1645855769246,0.53405453,2783.8,2783.1,0.0030813]
[1645855769841,0.53405453,2783.8,2783.1,1.16046866]
[1645855770285,0.53405453,2783.8,2783.1,0.0030813]
[1645855770484,0.8984,2783.7,2783.1,0.0030813]
[1645855770685,0.511,2783.6,2783.3,0.00485944]
[1645855771787,0.511,2783.6,2783.0,0.3]
[1645855771988,0.511,2783.6,2783.3,0.00485944]
[1645855771989,14.991,2783.6,2783.3,0.00485944]
[1645855772188,14.991,2783.6,2782.6,0.0030813]
[1645855772189,17.362,2783.4,2782.6,0.0030813]
[1645855772391,11.8788716,2783.1,2782.6,0.0030813]
[1645855772587,11.491,2783.0,2782.4,0.25]
[1645855772790,1.79767,2782.8,2781.8,0.1436]
[1645855772990,0.511,2782.7,2781.9,0.0030813]
[1645855773191,0.511,2782.7,2782.0,0.1436]
[1645855773390,0.511,2782.7,2782.1,1.10530912]
[1645855773842,0.8987824,2782.5,2782.1,1.10530912]
[1645855774031,0.511,2782.4,2782.1,1.10530912]
[1645855775239,0.8987824,2782.5,2782.1,1.10530912]
[1645855775439,0.511,2782.7,2782.1,1.10530912]
[1645855775637,0.511,2782.7,2782.1,1.40530912]
[1645855775838,0.511,2782.7,2782.1,1.4101696]
[1645855776640,0.511,2782.7,2782.1,1.40530912]
[1645855776841,0.511,2782.7,2782.3,0.00454104]
[1645855777796,0.511,2782.7,2782.1,1.40839042]
[1645855777997,0.511,2782.7,2782.4,0.00454096]
[1645855778898,0.511,2782.7,2782.2,0.0030813]
[1645855779101,0.511,2782.7,2782.1,1.54890912]
[1645855779301,0.511,2782.7,2782.4,0.00454093]
[1645855779499,3.64968565,2783.1,2782.4,0.00454093]
[1645855779898,3.64968565,2783.1,2782.4,0.00762223]
[1645855780101,1.2198,2783.1,2782.4,0.00762223]
[1645855780299,1.2198,2783.1,2782.4,0.0030813]
[1645855780500,1.2198,2783.1,2782.6,0.00422934]
[1645855781440,1.2198,2783.1,2782.4,0.0030813]
[1645855781643,1.2198,2783.1,2782.7,0.00424528]
[1645855781846,2.42988565,2783.4,2782.7,0.00424528]
[1645855782045,2.42988565,2783.4,2782.7,0.52997884]
[1645855782241,2.42988565,2783.4,2782.8,0.3597]
[1645855782442,2.42988565,2783.4,2782.8,0.53704319]
[1645855782643,4.4238,2784.1,2782.8,1.13514319]
[1645855782844,4.4238,2784.1,2782.9,0.0030813]
[1645855783448,4.4238,2784.1,2784.0,1.38035528]
[1645855783646,6.08818565,2784.2,2784.0,1.38035528]
[1645855783647,2.94088565,2784.2,2784.0,1.38035528]
[1645855783849,0.511,2784.2,2784.0,1.38035528]
[1645855784049,0.511,2784.2,2784.0,1.68035528]
[1645855784251,3.33226992,2784.3,2784.0,1.68035528]
[1645855784849,3.33226992,2784.3,2784.0,1.38035528]
[1645855785079,0.8981405,2784.3,2784.0,1.38035528]
[1645855785283,0.902425,2784.3,2784.0,1.38035528]
[1645855785481,0.902425,2784.3,2784.0,1.68035528]
[1645855785885,0.0042845,2784.3,2784.0,1.68035528]
[1645855786485,0.12555632,2784.5,2784.0,1.68035528]
[1645855786682,0.0042845,2784.3,2784.1,3.8]
[1645855786885,0.0042845,2784.3,2784.1,0.3]
[1645855787081,0.0042845,2784.3,2784.0,1.98035528]
[1645855787282,0.0042845,2784.3,2784.0,1.68035528]
[1645855787685,0.12555632,2784.5,2784.0,1.68035528]
[1645855787885,0.0042845,2784.3,2784.0,1.68035528]
[1645855788287,0.0042845,2784.3,2784.0,1.38035528]
[1645855788688,0.12555632,2784.5,2784.0,1.38035528]
[1645855789136,0.00427893,2784.3,2784.0,1.38035528]
[1645855789934,0.12555632,2784.5,2784.0,1.38035528]
[1645855790235,0.00427893,2784.3,2784.0,1.38035528]
[1645855791230,0.12555632,2784.5,2784.0,1.68035528]
[1645855791448,0.00427893,2784.3,2784.0,1.68035528]
[1645855792437,0.12555632,2784.5,2784.0,1.68035528]
[1645855792699,0.00427968,2784.3,2784.0,1.68035528]
[1645855793599,0.12555632,2784.5,2784.0,1.68035528]
[1645855793801,0.00427968,2784.3,2784.0,1.68035528]
[1645855794898,0.12555632,2784.5,2784.0,1.68035528]
[1645855795101,0.0021502,2784.3,2784.0,1.68035528]
[1645855795802,0.00059657,2784.3,2784.0,1.68035528]
[1645855796003,0.12555632,2784.5,2784.0,1.68035528]
[1645855798240,0.12555632,2784.5,2784.0,1.97344361]
[1645855798637,0.12555632,2784.5,2784.0,1.67344361]
[1645855798839,0.12555632,2784.5,2784.0,1.97344361]
[1645855799842,0.0048615,2784.4,2784.0,1.97344361]
[1645855800293,0.01944309,2784.8,2784.1,0.3597]
[1645855800496,0.01944309,2784.8,2784.3,0.3597]
[1645855800694,0.00416651,2785.1,2784.3,1.54337785]
[1645855800891,2.42988565,2785.2,2784.4,0.53354959]
[1645855801094,0.00416651,2785.1,2784.4,0.53354959]
[1645855801294,2.42988565,2785.2,2784.4,0.82994959]
[1645855801496,0.00416651,2785.3,2785.1,1.30465589]
[1645855801704,1.40894,2785.2,2784.0,1.2125]
[1645855801897,9.882,2785.1,2784.0,1.2125]
[1645855802096,0.511,2785.0,2784.0,1.2125]
[1645855802294,3.5,2784.9,2784.0,1.2125]
[1645855802696,0.511,2784.8,2784.0,1.2125]
[1645855802897,0.8981571,2784.6,2784.0,1.2125]
[1645855803097,1.40917,2784.5,2783.8,1.09311294]
[1645855804159,1.40917,2784.5,2783.8,1.39311294]
[1645855804867,1.41403115,2784.5,2783.8,1.39797535]
[1645855805766,1.40917,2784.5,2783.8,1.39311294]
[1645855806167,1.40917,2784.5,2783.8,1.39797535]
[1645855806168,1.41403115,2784.5,2783.8,1.39797535]
[1645855806366,1.41403115,2784.5,2783.8,0.00486241]
[1645855806967,1.40917,2784.5,2783.6,0.0030813]
[1645855807167,1.41403115,2784.5,2783.8,0.00486241]
[1645855807367,0.51586115,2784.5,2784.3,1.42461179]
[1645855807794,0.51586115,2784.5,2784.3,0.00796053]
[1645855808195,0.511,2784.5,2783.6,8.9766813]
[1645855808395,0.51586137,2784.5,2783.8,0.00486262]
[1645855809198,0.51586137,2784.5,2784.4,1.13035271]
[1645855809397,0.511,2784.5,2784.4,1.13035271]
[1645855809597,0.511,2784.5,2783.7,1.89797]
[1645855809797,0.51586115,2784.5,2783.8,0.00486241]
[1645855810599,0.511,2784.5,2784.1,1.18597991]
[1645855810804,0.51586115,2784.5,2783.8,0.00486241]
[1645855811440,0.51586115,2784.5,2783.8,0.90280241]
[1645855811441,0.00486115,2784.5,2783.8,0.90280241]
[1645855811842,2.43405216,2785.1,2783.8,1.19794]
[1645855812037,2.94505216,2785.1,2783.8,1.19794]
[1645855812235,2.94505216,2785.1,2783.8,4.63447907]
[1645855812437,0.00486115,2784.5,2783.9,1.21446577]
[1645855813242,0.51516651,2785.1,2783.9,1.21446577]
[1645855813441,0.00477005,2784.5,2783.9,1.21446577]
[1645855814442,0.51516651,2785.1,2783.9,1.21446577]
[1645855814642,0.00477005,2784.5,2783.9,1.21446577]
[1645855814944,0.00477005,2784.5,2784.0,0.3597]
[1645855815189,0.00477005,2784.5,2784.1,3.8597]
[1645855815393,0.00477005,2784.5,2784.2,0.89777]
[1645855815586,0.00477005,2784.5,2784.3,3.5]
[1645855815788,0.00477005,2784.5,2784.3,4.8]
[1645855816186,0.00477009,2784.5,2784.3,4.8]
[1645855816388,0.00477009,2784.5,2784.3,1.3]
[1645855816788,0.00416651,2785.2,2784.4,1.29800633]
[1645855816988,0.00416651,2785.3,2784.4,5.32969675]
[1645855817193,0.01700369,2785.0,2784.6,0.89771]
[1645855817388,0.01700369,2785.0,2784.6,1.19771]
[1645855817793,0.01700369,2785.0,2784.6,1.35797463]
[1645855817995,0.51516651,2785.6,2784.6,1.19771]
[1645855818194,0.51516651,2785.6,2785.2,1.05255419]
[1645855818392,0.01700249,2785.4,2785.2,1.05255419]
[1645855818593,0.01700249,2785.4,2784.6,1.3]
[1645855818846,0.01700249,2785.4,2784.6,0.3]
[1645855819037,0.01700249,2785.4,2784.5,5.4528]
[1645855819237,0.00416651,2785.5,2784.5,5.4528]
[1645855819439,0.00425111,2785.1,2784.5,5.4528]
[1645855820444,0.51516651,2785.3,2784.5,5.4528]
[1645855820651,0.51516651,2785.3,2784.6,1.19111719]
[1645855820846,0.51516651,2785.3,2784.5,5.4528]
[1645855820847,0.00425852,2784.9,2784.5,5.4528]
[1645855821547,0.51516651,2785.3,2784.5,5.4528]
[1645855821946,0.00428618,2784.8,2784.6,1.03444427]
[1645855822347,0.00428618,2784.8,2784.5,1.1654]
[1645855822601,0.00428618,2784.8,2783.7,0.25]
[1645855822602,0.511,2784.7,2783.8,0.00428775]
[1645855823003,0.511,2784.7,2783.7,0.25]
[1645855823205,0.511,2784.7,2783.6,0.0030813]
[1645855823703,0.511,2784.7,2783.8,0.00428771]
[1645855823902,0.8982086,2784.5,2783.8,0.00428771]
[1645855824103,0.511,2784.4,2783.8,0.00428771]
[1645855824301,0.511,2784.4,2783.6,1.59592802]
[1645855824703,0.511,2784.4,2783.8,0.00428553]
[1645855825506,0.511,2784.4,2783.6,1.59592802]
[1645855825708,0.511,2784.4,2783.8,0.00428288]
[1645855826638,0.511,2784.4,2783.6,1.59592802]
[1645855826838,0.511,2784.4,2784.1,1.26193994]
[1645855828038,4.2243812,2784.8,2784.1,1.26193994]
[1645855828039,0.00428189,2784.5,2784.1,1.26193994]
[1645855828839,0.00428189,2784.5,2784.1,1.56193994]
[1645855829041,0.511,2784.7,2784.1,1.56193994]
[1645855829240,0.00428254,2784.5,2784.1,1.56193994]
[1645855830283,0.00306856,2784.5,2784.1,1.56193994]
[1645855830483,0.00428254,2784.5,2784.1,1.56193994]
[1645855831485,0.8979812,2784.8,2784.1,1.56193994]
[1645855832890,0.00428247,2784.6,2784.1,1.56193994]
[1645855833936,0.8979812,2784.8,2784.1,1.56193994]
[1645855834138,0.00428239,2784.6,2784.1,1.56193994]
[1645855835139,0.8979812,2784.8,2784.1,1.56193994]
[1645855835338,0.00214279,2784.6,2784.1,1.56193994]
[1645855835838,0.00214279,2784.6,2784.1,0.3]
[1645855836040,0.511,2784.7,2783.8,0.4436]
[1645855836239,0.511,2784.7,2783.8,0.1436]
[1645855836639,0.00428393,2784.6,2784.0,0.00428491]
[1645855837439,0.511,2784.7,2783.8,0.1436]
[1645855837891,0.511,2784.7,2784.0,1.20382488]
[1645855838091,0.511,2784.7,2784.0,1.50382488]
[1645855839394,0.511,2784.7,2784.0,0.3]
[1645855839596,0.511,2784.7,2783.8,0.3936]
[1645855839899,0.89813,2784.6,2783.8,0.1436]
[1645855840097,0.89813,2784.6,2783.6,0.0030813]
[1645855840098,2.02857376,2784.5,2784.0,0.00486375]
[1645855840301,0.8982641,2784.3,2784.0,0.00486375]
[1645855840500,0.00758716,2783.9,2783.6,0.0030813]
[1645855840697,0.00758716,2783.9,2783.5,1.1964]
[1645855841099,0.00758716,2783.9,2783.4,0.26639783]
[1645855843540,0.00758716,2783.9,2783.4,0.12279783]
[1645855844940,0.00758716,2783.9,2783.5,0.00486404]
[1645855845787,0.00758716,2783.9,2783.4,0.12279783]
[1645855846189,0.00758716,2783.9,2783.6,0.00486399]
[1645855846590,0.00758716,2783.9,2783.7,1.37061671]
[1645855847393,0.00758716,2783.9,2783.7,1.37548062]
[1645855848093,0.00758716,2783.9,2783.7,1.67548062]
[1645855848295,0.00758716,2783.9,2783.7,1.67061671]
[1645855848494,0.00758716,2783.9,2783.7,1.67548062]
[1645855849537,0.00758716,2783.9,2783.7,1.67061671]
[1645855849735,0.00758716,2783.9,2783.7,1.67548062]
[1645855850537,0.00758716,2783.9,2783.8,4.0033]
[1645855850741,0.00758716,2783.9,2783.8,4.94681636]
[1645855852343,0.00758716,2783.9,2783.8,5.15173694]
[1645855852586,0.00758716,2783.9,2783.8,1.65173694]
[1645855852791,0.00758716,2783.9,2783.8,0.65173694]
[1645855853892,0.00758716,2783.9,2783.8,0.56462058]
[1645855854901,0.00758716,2783.9,2783.8,0.3597]
[1645855856195,0.00758716,2783.9,2783.7,1.67548403]
[1645855856643,0.00758716,2783.9,2783.7,1.67061671]
[1645855857042,0.00758716,2783.9,2783.7,1.67548407]
[1645855857845,0.00758716,2783.9,2783.7,1.67061671]
[1645855858045,0.00758716,2783.9,2783.7,1.67548407]
[1645855859044,0.00758716,2783.9,2783.7,1.67061671]
[1645855859454,0.00758716,2783.9,2783.7,1.67548407]
[1645855859646,0.00486606,2784.4,2783.7,1.67548407]
[1645855860305,0.8980371,2784.6,2783.7,1.67061671]
[1645855860506,0.00486628,2784.4,2783.9,0.00486723]
[1645855861512,0.8980371,2784.6,2783.7,1.67061671]
[1645855861711,0.00486636,2784.4,2783.9,0.00486732]
[1645855862611,0.8980371,2784.6,2783.6,2.04992541]
[1645855862811,0.8980371,2784.6,2783.6,3.04992541]
[1645855863113,0.00486636,2784.4,2783.9,0.00486732]
[1645855863711,0.00486636,2784.4,2783.9,1.29326341]
[1645855863940,0.8980371,2784.6,2783.9,1.28839609]
[1645855864144,0.8980371,2784.6,2783.9,0.30486732]
[1645855864145,0.00486636,2784.4,2783.9,0.30486732]
[1645855864741,0.00486636,2784.4,2783.9,0.00486732]
[1645855865142,0.8980371,2784.6,2783.6,2.04992541]
[1645855865343,0.00486636,2784.4,2783.9,0.00486732]
[1645855865742,0.511,2784.3,2783.9,0.00486732]
[1645855866746,0.511,2784.3,2783.9,0.00486727]
[1645855867592,0.511,2784.3,2783.6,1.2062]
[1645855867796,0.511,2784.3,2783.9,0.00455878]
[1645855868798,0.511,2784.3,2783.6,1.2062]
[1645855868998,0.511,2784.3,2783.9,0.00439451]
[1645855869996,0.511,2784.3,2783.6,1.2062]
[1645855870399,0.511,2784.3,2783.9,0.00439451]
[1645855871200,0.511,2784.3,2783.5,0.0030813]
[1645855871637,0.511,2784.3,2783.9,0.004703]
[1645855872238,0.51008034,2784.3,2783.9,0.004703]
[1645855872440,0.51008034,2784.3,2783.5,1.24820847]
[1645855872641,0.51008034,2784.3,2783.5,0.0030813]
[1645855872843,0.51008034,2784.3,2783.9,0.00455866]
[1645855873643,0.51008034,2784.3,2783.5,0.0030813]
[1645855873846,0.51008034,2784.3,2783.9,0.00455866]
[1645855874743,0.51008034,2784.3,2783.5,0.0030813]
[1645855875188,0.51008034,2784.3,2783.9,0.00455866]
[1645855875789,0.51008034,2784.3,2783.4,0.26403779]
[1645855875989,0.51008034,2784.3,2783.5,0.00308693]
[1645855876392,0.51008034,2784.3,2783.9,0.00455799]
[1645855877288,0.51008034,2784.3,2783.5,0.00308693]
[1645855878850,0.51251508,2784.3,2783.5,0.00308693]
[1645855879652,0.51008034,2784.3,2783.5,0.00308693]
[1645855880059,0.51494673,2784.3,2783.8,0.00486727]
[1645855880862,0.51008034,2784.3,2783.5,0.00308693]
[1645855881259,0.51494686,2784.3,2783.8,0.0048674]
[1645855882159,0.51008034,2784.3,2783.5,0.00308693]
[1645855882361,0.51494686,2784.3,2783.8,0.0048674]
[1645855882796,0.89825,2784.2,2783.8,0.0048674]
[1645855882996,0.511,2784.1,2783.8,0.0048674]
[1645855883396,0.511,2784.1,2783.5,0.00308693]
[1645855883598,0.511,2784.1,2783.8,0.00486736]
[1645855884496,1.4091903,2784.1,2783.5,0.00308693]
[1645855884696,1.4091903,2784.1,2783.8,0.00486732]
[1645855885698,1.4091903,2784.1,2783.5,0.00308693]
[1645855886099,1.4091903,2784.1,2783.8,0.00486732]
[1645855886954,1.4091903,2784.1,2783.5,0.00308693]
[1645855887254,1.4091903,2784.1,2783.8,0.00454278]
[1645855888058,1.4091903,2784.1,2783.5,0.00308693]
[1645855888459,1.4091903,2784.1,2783.8,0.00454278]
[1645855889362,1.4091903,2784.1,2783.5,0.00308693]
[1645855889560,1.4091903,2784.1,2783.8,0.00454278]
[1645855890586,1.4091903,2784.1,2783.5,0.00308693]
[1645855890786,1.4091903,2784.1,2783.8,0.00454278]
[1645855891792,1.4091903,2784.1,2783.5,0.00308693]
[1645855891990,1.4091903,2784.1,2783.8,0.00456203]
[1645855892995,1.4091903,2784.1,2783.5,0.00308693]
[1645855893195,1.4091903,2784.1,2783.8,0.00456203]
[1645855893837,1.4091903,2784.1,2783.8,1.36548103]
[1645855894043,0.0045612,2784.3,2783.8,1.36548103]
[1645855894242,0.00236003,2784.7,2783.8,1.660919]
[1645855894441,0.0045612,2784.3,2783.9,1.1616]
[1645855894840,0.0045612,2784.3,2784.0,0.1436]
[1645855895242,0.0045612,2784.3,2784.0,0.14222962]
[1645855896045,0.00440609,2784.3,2784.0,0.14222962]
[1645855896842,0.00416651,2784.8,2784.0,0.14222962]
[1645855897243,0.00440609,2784.3,2784.0,0.14222962]
[1645855898101,0.00416651,2785.0,2784.0,0.14222962]
[1645855898297,0.00425604,2784.3,2784.0,0.14222962]
[1645855898701,0.00425604,2784.3,2784.1,0.6597]
[1645855898898,0.00425604,2784.3,2784.1,0.84234644]
[1645855899298,0.00416651,2785.1,2784.1,0.84234644]
[1645855899498,0.004256,2784.3,2784.1,0.3]
[1645855899698,0.004256,2784.3,2784.0,1.51395309]
[1645855899900,0.004256,2784.3,2784.0,1.50545198]
[1645855900199,0.004256,2784.3,2784.1,0.3]
[1645855900399,0.00416651,2785.1,2784.1,0.3]
[1645855900601,0.00416651,2785.1,2784.1,0.20859055]
[1645855900798,0.00425604,2784.3,2784.1,0.3]
[1645855901000,0.00425604,2784.3,2784.1,0.81684967]
[1645855901643,0.00416651,2785.1,2784.4,1.2135378]
[1645855901944,1.4088769,2785.2,2784.2,1.5534]
[1645855901945,0.00213684,2784.3,2784.2,1.5534]
[1645855902745,1.41304341,2785.2,2784.2,1.5534]
[1645855903046,0.00429546,2784.4,2784.2,1.5534]
[1645855903249,0.00429546,2784.4,2784.3,1.36157495]
[1645855903448,0.00429546,2784.4,2784.3,1.66157495]
[1645855904046,0.06078091,2785.1,2784.3,1.66157495]
[1645855904247,0.00429539,2784.5,2784.3,1.66157495]
[1645855904447,0.00429539,2784.5,2784.3,0.3]
[1645855904847,0.00429539,2784.5,2784.2,2.4937]
[1645855905099,0.00429539,2784.5,2784.2,1.4937]
[1645855905698,0.01717897,2784.9,2784.2,1.4937]
[1645855905699,0.06078091,2785.1,2784.2,1.4937]
[1645855905902,0.00429539,2784.5,2784.2,1.4937]
[1645855906099,0.00429539,2784.5,2784.3,1.41856712]
[1645855906299,0.00429539,2784.5,2784.2,2.7937]
[1645855906499,0.06078091,2785.1,2784.2,1.7937]
[1645855906701,0.57178091,2785.1,2784.2,2.1937]
[1645855906902,0.00428959,2784.5,2784.2,2.1937]